Cogmind - Beta 13 X1 @@@ ROGUE MODE // 2023.07.05 @ 13:59:41 Player: Lunatic Blue Result: Destroyed by SM-83I(R) with Subdweller Machine Gun Performance ------------- Evolutions (0) 0 Regions Visited (2) 400 Robots Destroyed (18) 90 Value Destroyed (412) 412 Prototype IDs (0) 0 Alien Tech Used (0) 0 Bonus (-8) -8 TOTAL SCORE: 894 Bonus ------- Friendly Fire -8 Cogmind --------- Core Integrity 0/250 Matter 255/300 Energy 60/160 System Corruption 0% Temperature Cool (0) Movement Treading (240) Ox1 Location -10/Subcaves Parts ------- > --- POWER (1) -------- Light Nuclear Core > --- PROPULSION (2) --- Light Treads Wheel > --- UTILITY (2) ------ Large Storage Unit Targeting Computer > --- WEAPON (2) ------- Medium Laser Medium Laser > --- INVENTORY (15) --- Light Treads Light Treads Light Treads Compact Wheel Medium Storage Unit Weight Redist. System Sensor Array Signal Interpreter Light Armor Plating Scrap Shield Light Cannon Mining Claw Peak State ------------ > --- POWER ------------ Light Nuclear Core > --- PROPULSION ------- Light Treads Wheel > --- UTILITY ---------- Large Storage Unit Targeting Computer > --- WEAPON ----------- Medium Laser Medium Laser > --- INVENTORY -------- Light Treads Light Treads Light Treads Compact Wheel Medium Storage Unit Weight Redist. System Sensor Array Signal Interpreter Light Armor Plating Scrap Shield Light Cannon Mining Claw [Rating: 10] Favorites ----------- Power Light Ion Engine Engine Light Ion Engine Power Core Light Nuclear Core Propulsion Wheel Treads Light Treads Leg Aluminum Leg Wheel Wheel Utility Small Storage Unit Device Seismic Detector Storage Small Storage Unit Processor Targeting Computer Weapon EM Pulse Gun Energy Gun EM Pulse Gun Ballistic Cannon Light Cannon Launcher Grenade Launcher Slashing Weapon Mining Claw Build | -11 -10 -10 ------- Run | Jun Mat Sub Slots Evolved . | . . . Power . | . . . Propulsion . | . . . Utility . | . . . Weapon . | . . . Parts Attached 17 | . 13 4 Power 2 | . 1 1 Engine 1 | . 1 . Core 1 | . . 1 Reactor . | . . . Propulsion 3 | . 3 . Treads 2 | . 2 . Leg . | . . . Wheel 1 | . 1 . Hover . | . . . Flight . | . . . Utility 5 | . 5 . Device 1 | . 1 . Storage 2 | . 2 . Processor 2 | . 2 . Hackware . | . . . Protection . | . . . Artifact . | . . . Weapon 7 | . 4 3 Energy Gun 3 | . 1 2 Energy Cannon . | . . . Ballistic Gun . | . . . Ballistic Cannon 1 | . 1 . Launcher 2 | . 1 1 Special Weapon . | . . . Impact Weapon . | . . . Slashing Weapon 1 | . 1 . Piercing Weapon . | . . . Special Melee Weapon . | . . . Unidentified Prototypes . | . . . Parts Lost 4 | . 2 2 Power 1 | . . 1 Propulsion . | . . . Utility . | . . . Weapon 3 | . 2 1 Highest Loss Streak 2 | . 1 2 To Critical Strikes . | . . . Average Slot Usage (%) 97 | . 97 100 Engine 13 | . 13 12 Treads 11 | . 10 14 Leg 4 | . 5 . Wheel 11 | . 10 14 Device 3 | . 4 . Storage 14 | . 14 14 Processor 8 | . 7 14 Energy Gun 12 | . 14 2 Ballistic Cannon 9 | . 8 12 Slashing Weapon 5 | . 4 12 Naked Turns . | . . . Heaviest Build 28 | 12 28 28 Greatest Support 20 | 20 20 20 Greatest Overweight (x) 1 | . 1 1 Average Overweight (x) . | . . 1 Largest Inventory Capacity 15 | 8 15 15 Average Capacity 10 | 8 9 15 Most Carried 15 | 8 13 15 Average Carried 9 | 6 8 14 Final Capacity 15 | 8 15 15 Final Carried 13 | 8 13 13 Class Distribution -------------------- 100% | Mutant Dominant Class ---------------- Mutant | -10/Materials Mutant | -10/Subcaves Resources | -11 -10 -10 ----------- Run | Jun Mat Sub Matter Collected 385 | 200 145 40 Remotely . | . . . Salvage Created 626 | 116 454 56 Parts 37 | 7 27 3 Haulers Intercepted 2 | . 2 . Recyclers Shooed . | . . . Parts Field Recycled . | . . . Retrieved Matter . | . . . Parts Self-Destructed . | . . . Prevented . | . . . Kills | -11 -10 -10 ------- Run | Jun Mat Sub Combat Hostiles Destroyed 11 | . 9 2 Guns 5 | . 5 . Cannons 2 | . 1 1 AOE 4 | . 3 1 Classes Destroyed 7 | 2 4 1 Tunneler 1 | 1 . . Hauler 2 | . 2 . Recycler 1 | 1 . . Watcher 3 | . 3 . Swarmer 3 | . 3 . Grunt 6 | . 6 . Subdweller 2 | . . 2 Best Kill Streak 4 | 1 4 1 Combat Bots Only 3 | . 3 1 Max Kills in Single Turn 2 | 1 2 1 Gunslinging . | . . . Exploded 2 | . 2 1 Melee . | . . . Uniques/NPCs Destroyed . | . . . Combat | -11 -10 -10 -------- Run | Jun Mat Sub Damage Taken 702 | . 208 494 Core 250 | . 80 170 Absorbed by Shields . | . . . Core Remaining (%) 100 | 100 . . Volleys Fired 40 | 10 23 7 Largest 2 | 2 2 2 Hottest 100 | 80 80 100 Shots Fired 68 | 20 39 9 Gun 54 | 20 30 4 Cannon 10 | . 6 4 Launcher 4 | . 3 1 Special . | . . . Kinetic 10 | . 6 4 Thermal 4 | . . 4 Explosive 4 | . 3 1 Electromagnetic 50 | 20 30 . Robot Hit Streak 12 | 7 5 12 Robot Miss Streak 2 | 2 2 . Penetration Max . | . . . Secondary Targets . | . . . Shots Hit Robots 47 | 12 26 9 Core Hits 32 | 3 19 10 Critical Kills . | . . . Critical Parts Destroyed . | . . . Critical Strikes 1 | . 1 . Corrupt 1 | . 1 . Melee Attacks 6 | . 4 2 Impact . | . . . Slashing 6 | . 4 2 Piercing . | . . . Sneak Attacks 1 | . 1 . Combat Hostiles . | . . . Follow-up Attacks . | . . . Damage Inflicted 1311 | 160 751 400 Guns 566 | 160 355 51 Cannons 147 | . 74 73 Explosions 546 | . 270 276 Melee 50 | . 50 . Ramming 2 | . 2 . Kinetic 147 | . 74 73 Thermal 138 | . 87 51 Explosive 459 | . 183 276 Electromagnetic 515 | 160 355 . Impact . | . . . Slashing 50 | . 50 . Piercing . | . . . Highest Corruption . | . . . Average Corruption . | . . . Corruption Purged . | . . . Corruption Blocked . | . . . Overload Shots . | . . . Overflow Damage 17 | . 17 . Projectiles . | . . . Explosions 17 | . 17 . Melee . | . . . Knockbacks 2 | . 1 1 Impact . | . . . Kinetic 2 | . 1 1 Secondary . | . . . Self-Inflicted Damage 106 | . 67 39 Shots 3 | . 2 1 Rammed 1 | . 1 . Targets Rammed 1 | . 1 . Kicked . | . . . Crushed . | . . . Highest Temperature 90 | 90 64 4 Average Temperature 34 | 47 26 4 Received Heat Transfer 111 | . 63 48 Siege Activations . | . . . Robots Corrupted . | . . . Combat Hostiles . | . . . Parts Fried 2 | 1 1 . Impact Corruptions . | . . . Robots Melted . | . . . Combat Hostiles . | . . . Parts Melted 1 | . 1 . Heat Transferred 298 | . 150 148 Parts Sabotaged . | . . . Parts Stolen . | . . . Parts Stripped . | . . . Power Chain Reactions 2 | . 2 . Missiles Intercepted . | . . . Alert | -11 -10 -10 ------- Run | Jun Mat Sub Peak Influence 365 | 10 365 . Initial 6 | . 6 . Average 165 | 5 186 . Maximum Alert Level 1 | . 1 . Low Security (%) 72 | 100 68 . Level 1 27 | . 31 . Level 2 . | . . . Level 3 . | . . . Level 4 . | . . . Level 5 . | . . . High Security . | . . . Max Security . | . . . Squads Dispatched 2 | . 2 . Investigation 2 | . 2 . Extermination . | . . . Reinforcement . | . . . Assault . | . . . Garrison . | . . . Intercept . | . . . Searches Triggered . | . . . Construction Impeded . | . . . Haulers Reinforced . | . . . Active Scanning Responses . | . . . Cargo Convoy Interrupts . | . . . Stealth | -11 -10 -10 --------- Run | Jun Mat Sub Distress Signals . | . . . Communications Jammed . | . . . Distress Signals . | . . . Times Spotted 29 | . 15 14 Peak Tracking Total 10 | . 3 10 Tactical Retreats . | . . . Traps | -11 -10 -10 ------- Run | Jun Mat Sub Traps Triggered 2 | . 2 . Indirectly . | . . . Trap Hack Attempts . | . . . Triggered . | . . . Disarmed . | . . . Reprogrammed . | . . . Reused . | . . . Traps Extracted . | . . . Installed . | . . . Triggered . | . . . Machines | -11 -10 -10 ---------- Run | Jun Mat Sub Machines Disabled 2 | . 2 . Max in Single Turn 1 | . 1 . Machines Repaired . | . . . Machines Sabotaged . | . . . Overloaded Fab Kills . | . . . Hacking | -11 -10 -10 --------- Run | Jun Mat Sub Machines Accessed 5 | . 5 . Terminals 5 | . 5 . Fabricators . | . . . Repair Stations . | . . . Recycling Units . | . . . Scanalyzers . | . . . Garrison Access . | . . . Total Hacks 15 | . 15 . Successful 7 | . 7 . Failed 8 | . 8 . Catastrophic 2 | . 2 . Database Lockouts . | . . . Manual 13 | . 13 . Terminals 15 | . 15 . Fabricators . | . . . Repair Stations . | . . . Recycling Units . | . . . Scanalyzers . | . . . Garrison Access . | . . . Terminal Hacks 4 | . 4 . Terminal Index 1 | . 1 . Alert Level 1 | . 1 . Locate Traps 1 | . 1 . Zone Layout 1 | . 1 . Fabricator Hacks . | . . . Repair Station Hacks . | . . . Recycling Unit Hacks . | . . . Scanalyzer . | . . . Garrison Access Hacks . | . . . Unauthorized Hacks 3 | . 3 . Terminals 3 | . 3 . Botnet 3 | . 3 . Fabricators . | . . . Repair Stations . | . . . Recycling Units . | . . . Scanalyzers . | . . . Garrison Access . | . . . Data Cores Recovered . | . . . Used . | . . . Hacking Detections 5 | . 5 . Full Trace Events 1 | . 1 . Feedback Events . | . . . Feedback Blocked . | . . . Robot Schematics Acquired . | . . . Robots Built . | . . . Authchips . | . . . Time . | . . . Total Robot Build Rating . | . . . Part Schematics Acquired . | . . . Parts Built . | . . . Authchips . | . . . Time . | . . . Total Part Build Rating . | . . . Parts Repaired . | . . . Time . | . . . Parts Recycled . | . . . Recycled Matter . | . . . Retrieved Matter . | . . . Retrieved Components . | . . . Parts Scanalyzed . | . . . Part Schematics Acquired . | . . . Parts Damaged . | . . . Bothacking | -11 -10 -10 ------------ Run | Jun Mat Sub Used RIF Installer . | . . . Robots Hacked . | . . . Non-combat . | . . . Combat . | . . . Robot Hacks Applied . | . . . Relay Couplers Released . | . . . Fabnet Peak Effective % . | . . . Robots Rewired . | . . . Allies Hacked . | . . . Hacks Repelled . | . . . Allies | -11 -10 -10 -------- Run | Jun Mat Sub Total Allies . | . . . Largest Group . | . . . Highest-Rated Group . | . . . Highest-Rated Ally . | . . . Total Orders . | . . . Ally Attacks . | . . . Total Damage . | . . . Kills . | . . . Allies Corrupted . | . . . Allies Melted . | . . . Intel | -11 -10 -10 ------- Run | Jun Mat Sub Robot Analysis Total . | . . . Derelict Logs Recovered 1 | . . 1 Drone Launches . | . . . Drone Recoveries . | . . . Exploration | -11 -10 -10 ------------- Run | Jun Mat Sub Turns Passed 842 | 86 644 112 Spaces Moved 402 | 46 322 34 Core . | . . . Treads 258 | . 224 34 Legs 122 | 46 76 . Wheels 22 | . 22 . Hover . | . . . Flight . | . . . Fastest Speed 80 | 120 80 240 Average Speed 162 | 120 160 240 Slowest Speed 240 | 120 240 240 Overloaded Moves . | . . . Propulsion Burnouts . | . . . Robots Hopped . | . . . Cave-ins Triggered . | . . . Exploration Rate (%) 25 | 4 68 5 Regions Visited 2 Branch Regions 1 Pre-discovered Areas 1 | . . 1 Known Exits Taken . | . . . Unknown Exits Taken 2 | 1 1 . Scrap Searched . | . . . Spaces Dug 5 | . 5 . Terrain Destroyed 40 | . 28 12 Melee 3 | . 3 . Projectile . | . . . AOE 37 | . 25 12 Terrain Rammed . | . . . Walls Destroyed . | . . . Machines Disabled . | . . . Actions | -11 -10 -10 --------- Run | Jun Mat Sub Total 515 | 57 406 52 Wait 23 | . 19 4 Move 400 | 45 321 34 Hop . | . . . Pick Up 17 | 2 14 1 Fast Attach 5 | . 5 . Attach 8 | . 6 2 Detach 1 | . 1 . Swap 4 | . 2 2 Drop 10 | . 10 . Fire 40 | 10 23 7 Melee 6 | . 4 2 Ram . | . . . Kick . | . . . Crush 1 | . 1 . Escape Stasis . | . . . Rewire . | . . . Trap . | . . . Miscellaneous . | . . . Route ------- -11/Junkyard -10/Materials (discovered 4 exits: [*Mat] / [*Min x2] / [*Sub]) -10/Subcaves History --------- Turn | Location | Event 1 | -11/Junkyard | Discovered new exit (range 1) 87 | -11/Junkyard | Entered Materials 309 | -10/Materials | Build established: Mutant 422 | -10/Materials | Discovered new exit (range 4) 436 | -10/Materials | Discovered new exit (range 16) 599 | -10/Materials | Discovered new exit (range 16) 710 | -10/Materials | Discovered new exit (range 10) 731 | -10/Materials | Entered Subcaves 825 | -10/Subcaves | Ambushed by swarm of Subdwellers 826 | -10/Subcaves | Ambushed by Subdwellers from Twisted Machinery 829 | -10/Subcaves | Ambushed by Subdwellers from Twisted Machinery 830 | -10/Subcaves | Ambushed by Subdwellers from Twisted Machinery 834 | -10/Subcaves | Ambushed by Subdweller buried in earth 834 | -10/Subcaves | Ambushed by Subdweller buried in earth 835 | -10/Subcaves | Core integrity fell below 50% 840 | -10/Subcaves | Core integrity fell below 20% 843 | -10/Subcaves | Destroyed by SM-83I(R) with Subdweller Machine Gun Last Messages --------------- 00829_ SM-83I(R) angrily emerges from the Twisted Machinery. 00830_ NS-JHQ(R) angrily emerges from the Twisted Machinery. 00831_ Lgt. Ion Engine destroyed. 00834_ F1-18V(R) destroyed. 00834_ HV Slug penetrates 4H-0RC(R). 00834_ 4H-0RC(R) suffers critical hit (Destroy). 00834_ XU-5XR(R) suffers critical hit (Destroy). 00835_ ZU-HFB(R): "NOSTUCKSUB!" 00835_ 2P-RD9(R): "NAT20!" 00835_ Grenade Launcher destroyed. 00835_ YK-876(R) destroyed. 00837_ HV Slug penetrates 4H-0RC(R). 00837_ XU-5XR(R) suffers critical hit (Destroy). 00837_ XU-5XR(R) destroyed. 00837_ 4H-0RC(R) destroyed. 00840_ HV Slug penetrates 6S-Y45(R). 00840_ 6S-Y45(R) suffers critical hit (Destroy). 00840_ NS-JHQ(R) affixes Scrap Shield Fragment to Scrap Shield. 00841_ 6S-Y45(R) affixes Scrap Shield Fragment to Scrap Shield. 00842_ A6-RL0(h) destroyed. Map ----- +----------------------------------------------------+ | ????????????????????????????## ##????????????? | | ?????????????????????????????### #?????????????? | | ????????????????????????????## # ##?????????????? | | ????????????????????????????# #??????????????? | | ??????????????????????????### #??????????????? | | ??????????????????????????# ##?????????????? | | ??????????????????????????# #### #?????????????? | | ?????????????????????????# #???## ##????????????? | | ?????????????????????????## ?????# #????????????? | | ??????????????????????????# ?????# #????????????? | | ??????????????????????????# #???## ##????????????? | | ??????????????????????????# #### #?????????????? | | ??????????????????????????# ##?????????????? | | ??????????????????????????##*!= #?????????????? | | ??????????????????????????##%%;# ##?????????????? | | ??????????????????????????# &#####??????????????? | | ??????????????????????????# %%###????????????????? | | ??????????????????????????## % #????????????????? | | ???????????????????????????# ##???????????????? | | ????????????????????????####% ##??????????????? | | ????????????????????????# %%% #??????????????? | | ????????????????????????# =!# #?????????????? | | ???????????????????????###%R## #????????????? | | ??????????????????????## #R##? #????????????? | | ??????????????????????# [[R&#?# #????????????? | | ???????????????????????#*@R=#?? ##????????????? | | ???????????????????????#R*R #?? ##?????????????? | | ???????????????????????# %RR #? ##??????????????? | | ???????????????????????#### !#?# #???????????????? | | ???????????????????????????# #?##???????????????? | | ????????????????????????????## #?????????????????? | | ??????????????????????????????# #????????????????? | | ??????????????????????????????? #????????????????? | | ????????????????????????????????#????????????????? | | ?????????????????????????????????????????????????? | | ?????????????????????????????????????????????????? | | ?????????????????????????????????????????????????? | | ?????????????????????????????????????????????????? | | ?????????????????????????????????????????????????? | | ?????????????????????????????????????????????????? | | ?????????????????????????????????????????????????? | | ?????????????????????????????????????????????????? | | ?????????????????????????????????????????????????? | | ?????????????????????????????????????????????????? | | ?????????????????????????????????????????????????? | | ?????????????????????????????????????????????????? | | ?????????????????????????????????????????????????? | | ?????????????????????????????????????????????????? | | ?????????????????????????????????????????????????? | | ?????????????????????????????????????????????????? | +----------------------------------------------------+ Best States ------------- Heat Dissipation 25 Energy Generation 14 Energy Capacity 160 Matter Stores 300 Matter Capacity 300 Sight Range 18 Terrain Scan Density 10 Evasion (%) 55 Targeting Accuracy 5 Recoil Reduction 1 Item Schematics ----------------- None Robot Schematics ------------------ None Fabricated ------------ Nothing Alien Tech Used ----------------- None Achievements -------------- None Challenges ------------ None Game ------ Seed UltimateXenonAutogun Manual? 0 Play Time 00:09:19 Cumulative 248.6 hours Start 2023.07.05 @ 13:51:34 End 2023.07.05 @ 13:59:41 Sessions 1 Manual Loads 0 Difficulty Rogue Special Mode None Game No. 318 Rogue 318 Adventurer 0 Explorer 0 Win Type - Total 8 Types 1/1/5/0/0/0/1/0/0 Lore% 77 Gallery% 84 Achievement% 69 Wizard Run 0 Options --------- ASCII 0 Keyboard 0 Movement Numpad Keybinds 0 Fullscreen 2 Font 18/SmallcapsGlow Map View 76x50 Tactical HUD 1 Map Filters NONE Filters NONE Steam 1 RUN: dc2cedc2-b3e2-44c5-8bba-e01be51e4292